[Event "*** SCC Grand Prix: Titled Tuesday Blitz"]
[Site "Chess.com"]
[Date "2020.08.25"]
[Round "2"]
[White "ZarinaShafigullina"]
[Black "Ermito2020"]
[Result "0-1"]
[WhiteElo "2285"]
[BlackElo "2628"]
[TimeControl "180+1"]
[EndTime "10:17:04 PDT"]
[Termination "Ermito2020 won by resignation"]

1. d4 {[%clk 0:03:00.9]} 1... d5 {[%clk 0:02:59.2]} 2. Nf3 {[%clk 0:03:01.8]}
2... Nf6 {[%clk 0:02:58.8]} 3. g3 {[%clk 0:03:02.7]} 3... g6 {[%clk 0:02:56.5]}
4. Bg2 {[%clk 0:03:02.1]} 4... Bg7 {[%clk 0:02:57]} 5. O-O {[%clk 0:03:03]} 5...
O-O {[%clk 0:02:57.1]} 6. c4 {[%clk 0:03:03.9]} 6... dxc4 {[%clk 0:02:57.3]} 7.
Ne5 {[%clk 0:03:03.8]} 7... Ng4 {[%clk 0:02:34.4]} 8. Nxg4 {[%clk 0:02:56.8]}
8... Bxg4 {[%clk 0:02:33.8]} 9. Bxb7 {[%clk 0:02:57.5]} 9... Nd7 {[%clk
0:02:34.1]} 10. Bxa8 {[%clk 0:02:55.3]} 10... Qxa8 {[%clk 0:02:33.8]} 11. f3
{[%clk 0:02:55.6]} 11... Bh3 {[%clk 0:02:33.1]} 12. Rf2 {[%clk 0:02:56.2]} 12...
Rd8 {[%clk 0:02:25.9]} 13. Nc3 {[%clk 0:02:50.8]} 13... Nc5 {[%clk 0:02:21.5]}
14. Be3 {[%clk 0:02:14.9]} 14... Ne6 {[%clk 0:02:21]} 15. d5 {[%clk 0:02:12.1]}
15... c6 {[%clk 0:02:20.9]} 16. d6 {[%clk 0:01:51.5]} 16... exd6 {[%clk
0:02:15.4]} 17. Qa4 {[%clk 0:01:38.5]} 17... d5 {[%clk 0:02:07.6]} 18. Nd1
{[%clk 0:01:25.4]} 18... Qb7 {[%clk 0:01:53.7]} 19. Qxa7 {[%clk 0:01:21.3]}
19... Qxa7 {[%clk 0:01:41.6]} 20. Bxa7 {[%clk 0:01:20.8]} 20... d4 {[%clk
0:01:42.5]} 21. Rc1 {[%clk 0:01:13.9]} 21... Ra8 {[%clk 0:01:34]} 22. Rxc4
{[%clk 0:01:06]} 22... Rxa7 {[%clk 0:01:32]} 23. a3 {[%clk 0:01:02.8]} 23... c5
{[%clk 0:01:28.2]} 24. b4 {[%clk 0:00:50.9]} 24... cxb4 {[%clk 0:01:25.7]} 25.
axb4 {[%clk 0:00:50.9]} 25... Ra1 {[%clk 0:01:25]} 0-1

[Event "*** SCC Grand Prix: Titled Tuesday Blitz"]
[Site "Chess.com"]
[Date "2020.08.25"]
[Round "2"]
[White "Region_07"]
[Black "j2806"]
[Result "1-0"]
[WhiteElo "2379"]
[BlackElo "2042"]
[TimeControl "180+1"]
[EndTime "10:17:11 PDT"]
[Termination "Region_07 won by resignation"]

1. e4 {[%clk 0:03:00.9]} 1... c5 {[%clk 0:02:59.4]} 2. Nf3 {[%clk 0:02:59.3]}
2... d6 {[%clk 0:02:59.5]} 3. Nc3 {[%clk 0:02:58.7]} 3... Nf6 {[%clk 0:02:58.4]}
4. e5 {[%clk 0:02:58.5]} 4... dxe5 {[%clk 0:02:58.4]} 5. Nxe5 {[%clk 0:02:59.4]}
5... Nbd7 {[%clk 0:02:58.5]} 6. Nc4 {[%clk 0:02:58.1]} 6... a6 {[%clk
0:02:56.1]} 7. a4 {[%clk 0:02:57.5]} 7... b6 {[%clk 0:02:51.6]} 8. Be2 {[%clk
0:02:54.3]} 8... Bb7 {[%clk 0:02:50.9]} 9. O-O {[%clk 0:02:54.5]} 9... e6 {[%clk
0:02:50.9]} 10. d3 {[%clk 0:02:53.5]} 10... Be7 {[%clk 0:02:50.2]} 11. Bf3
{[%clk 0:02:54]} 11... Qc7 {[%clk 0:02:47.8]} 12. g3 {[%clk 0:02:52.9]} 12...
Bxf3 {[%clk 0:02:34.9]} 13. Qxf3 {[%clk 0:02:53.8]} 13... O-O {[%clk 0:02:35]}
14. Re1 {[%clk 0:02:50.7]} 14... Rad8 {[%clk 0:02:26.8]} 15. Bf4 {[%clk
0:02:49.9]} 15... e5 {[%clk 0:02:19.9]} 16. Nxe5 {[%clk 0:02:48.7]} 16... Nxe5
{[%clk 0:02:19.3]} 17. Bxe5 {[%clk 0:02:48.1]} 17... Qa7 {[%clk 0:02:17]} 18.
Re2 {[%clk 0:02:27.6]} 18... Rfe8 {[%clk 0:02:16.3]} 19. Rae1 {[%clk 0:02:26.5]}
19... Kf8 {[%clk 0:02:06.1]} 20. Qf5 {[%clk 0:01:59.9]} 20... Qd7 {[%clk
0:01:55.8]} 21. Qxd7 {[%clk 0:01:52.7]} 21... Nxd7 {[%clk 0:01:54.8]} 22. Bxg7+
{[%clk 0:01:51.7]} 22... Kxg7 {[%clk 0:01:51]} 23. Rxe7 {[%clk 0:01:52.6]} 23...
Rxe7 {[%clk 0:01:51.2]} 24. Rxe7 {[%clk 0:01:52.9]} 24... Nf6 {[%clk 0:01:50.9]}
25. Rb7 {[%clk 0:01:47.4]} 25... Rd6 {[%clk 0:01:51]} 26. h3 {[%clk 0:01:44]}
26... Nd7 {[%clk 0:01:47.7]} 27. Ne4 {[%clk 0:01:42.1]} 27... Rd5 {[%clk
0:01:45]} 28. Kg2 {[%clk 0:01:32.4]} 28... f5 {[%clk 0:01:40.1]} 29. Ng5 {[%clk
0:01:26.4]} 29... h6 {[%clk 0:01:37.6]} 30. Ne6+ {[%clk 0:01:23.2]} 30... Kf6
{[%clk 0:01:35.9]} 31. Nf4 {[%clk 0:01:22.1]} 31... Rd6 {[%clk 0:01:35.2]} 32.
Ra7 {[%clk 0:01:13]} 32... a5 {[%clk 0:01:34.7]} 33. Rb7 {[%clk 0:01:11.8]}
33... Ne5 {[%clk 0:01:30.8]} 34. Rxb6 {[%clk 0:01:09.2]} 34... Rxb6 {[%clk
0:01:29.6]} 35. Nd5+ {[%clk 0:01:09.3]} 35... Ke6 {[%clk 0:01:29.9]} 36. Nxb6
{[%clk 0:01:10.2]} 36... Nc6 {[%clk 0:01:28.4]} 37. c3 {[%clk 0:01:09.6]} 37...
Ke5 {[%clk 0:01:26.4]} 38. Nc4+ {[%clk 0:01:08.6]} 38... Kd5 {[%clk 0:01:25.4]}
39. Kf3 {[%clk 0:01:09.1]} 1-0

[Event "*** SCC Grand Prix: Titled Tuesday Blitz"]
[Site "Chess.com"]
[Date "2020.08.25"]
[Round "2"]
[White "Bulldog167"]
[Black "Mostii"]
[Result "1-0"]
[WhiteElo "2677"]
[BlackElo "2363"]
[TimeControl "180+1"]
[EndTime "10:17:16 PDT"]
[Termination "Bulldog167 won by checkmate"]

1. c4 {[%clk 0:03:00.9]} 1... b6 {[%clk 0:02:59.2]} 2. e4 {[%clk 0:03:00.8]}
2... e6 {[%clk 0:02:58.6]} 3. Nc3 {[%clk 0:02:59.8]} 3... Bb7 {[%clk 0:02:58.9]}
4. Nf3 {[%clk 0:02:59.8]} 4... g6 {[%clk 0:02:58]} 5. d4 {[%clk 0:02:59.4]} 5...
Bg7 {[%clk 0:02:58.5]} 6. Be3 {[%clk 0:02:56.4]} 6... d6 {[%clk 0:02:58.8]} 7.
Bd3 {[%clk 0:02:56.5]} 7... Nd7 {[%clk 0:02:59.4]} 8. O-O {[%clk 0:02:57]} 8...
Ne7 {[%clk 0:02:59.7]} 9. Qd2 {[%clk 0:02:56.8]} 9... e5 {[%clk 0:02:58.9]} 10.
d5 {[%clk 0:02:56.5]} 10... O-O {[%clk 0:02:56.5]} 11. Ne1 {[%clk 0:02:51.8]}
11... f5 {[%clk 0:02:56]} 12. f3 {[%clk 0:02:51]} 12... a5 {[%clk 0:02:55.7]}
13. b3 {[%clk 0:02:48.6]} 13... f4 {[%clk 0:02:53.9]} 14. Bf2 {[%clk 0:02:48.5]}
14... Bc8 {[%clk 0:02:50.3]} 15. Be2 {[%clk 0:02:48.7]} 15... g5 {[%clk
0:02:49.4]} 16. Nd3 {[%clk 0:02:48.5]} 16... h5 {[%clk 0:02:49.5]} 17. a3 {[%clk
0:02:47.6]} 17... Nf6 {[%clk 0:02:49.6]} 18. b4 {[%clk 0:02:46.5]} 18... g4
{[%clk 0:02:49.5]} 19. c5 {[%clk 0:02:44.6]} 19... Ng6 {[%clk 0:02:39.6]} 20.
cxd6 {[%clk 0:02:44]} 20... cxd6 {[%clk 0:02:39.5]} 21. Kh1 {[%clk 0:02:42.1]}
21... g3 {[%clk 0:02:35]} 22. hxg3 {[%clk 0:02:36.5]} 22... fxg3 {[%clk
0:02:34.7]} 23. Bxg3 {[%clk 0:02:37.4]} 23... h4 {[%clk 0:02:32.1]} 24. Bh2
{[%clk 0:02:38]} 24... Nh5 {[%clk 0:02:32.2]} 25. f4 {[%clk 0:02:28.2]} 25...
Nhxf4 {[%clk 0:02:28.2]} 26. Nxf4 {[%clk 0:02:27.7]} 26... exf4 {[%clk
0:02:26.4]} 27. e5 {[%clk 0:02:26.1]} 27... Bxe5 {[%clk 0:02:25.5]} 28. Bd3
{[%clk 0:02:22.7]} 28... Bf5 {[%clk 0:02:19.6]} 29. Bxf5 {[%clk 0:02:20.4]}
29... Rxf5 {[%clk 0:02:20.5]} 30. Rac1 {[%clk 0:02:16.1]} 30... axb4 {[%clk
0:02:14.8]} 31. axb4 {[%clk 0:02:17]} 31... h3 {[%clk 0:02:06.5]} 32. gxh3
{[%clk 0:02:13.5]} 32... Ra3 {[%clk 0:02:06.4]} 33. Qg2 {[%clk 0:02:01.9]} 33...
Qf6 {[%clk 0:02:05]} 34. Ne4 {[%clk 0:02:00.1]} 34... Qg7 {[%clk 0:01:54]} 35.
Rg1 {[%clk 0:01:55.6]} 35... Kh7 {[%clk 0:01:13.4]} 36. Rc7 {[%clk 0:01:50.8]}
36... Qxc7 {[%clk 0:00:35.1]} 37. Qxg6+ {[%clk 0:01:50.6]} 37... Kh8 {[%clk
0:00:35.9]} 38. Qg8# {[%clk 0:01:51.1]} 1-0

[Event "*** SCC Grand Prix: Titled Tuesday Blitz"]
[Site "Chess.com"]
[Date "2020.08.25"]
[Round "2"]
[White "Gareth-Bale11"]
[Black "Nara_Kh"]
[Result "1-0"]
[WhiteElo "2749"]
[BlackElo "2321"]
[TimeControl "180+1"]
[EndTime "10:17:28 PDT"]
[Termination "Gareth-Bale11 won by resignation"]

1. e4 {[%clk 0:03:00]} 1... c5 {[%clk 0:02:58.8]} 2. Nf3 {[%clk 0:02:59.8]} 2...
d6 {[%clk 0:02:58.6]} 3. d4 {[%clk 0:02:59.9]} 3... Nf6 {[%clk 0:02:58.7]} 4.
Nc3 {[%clk 0:02:59.7]} 4... cxd4 {[%clk 0:02:59]} 5. Nxd4 {[%clk 0:03:00.6]}
5... a6 {[%clk 0:02:59.5]} 6. Bg5 {[%clk 0:03:00.4]} 6... Nbd7 {[%clk
0:02:58.9]} 7. Qd2 {[%clk 0:02:58]} 7... h6 {[%clk 0:02:52.2]} 8. Bxf6 {[%clk
0:02:42.2]} 8... Nxf6 {[%clk 0:02:53.1]} 9. O-O-O {[%clk 0:02:42.3]} 9... g6
{[%clk 0:02:48.5]} 10. f4 {[%clk 0:02:36.9]} 10... Bg7 {[%clk 0:02:35.9]} 11.
Bc4 {[%clk 0:02:19.5]} 11... O-O {[%clk 0:02:27]} 12. Bb3 {[%clk 0:02:11.9]}
12... b5 {[%clk 0:02:20.3]} 13. Rhe1 {[%clk 0:02:08.2]} 13... Bb7 {[%clk
0:02:12.9]} 14. Qd3 {[%clk 0:01:51.1]} 14... Rc8 {[%clk 0:01:46.4]} 15. e5
{[%clk 0:01:40.4]} 15... dxe5 {[%clk 0:01:43]} 16. fxe5 {[%clk 0:01:41.3]} 16...
Ng4 {[%clk 0:01:42.8]} 17. Qxg6 {[%clk 0:01:33.5]} 17... b4 {[%clk 0:00:35.8]}
18. Qxg4 {[%clk 0:01:31.7]} 18... bxc3 {[%clk 0:00:33.2]} 19. Nf5 {[%clk
0:01:30.5]} 19... cxb2+ {[%clk 0:00:20]} 20. Kb1 {[%clk 0:01:19.1]} 1-0

[Event "*** SCC Grand Prix: Titled Tuesday Blitz"]
[Site "Chess.com"]
[Date "2020.08.25"]
[Round "2"]
[White "dennisodessa"]
[Black "Zarinur"]
[Result "1-0"]
[WhiteElo "2402"]
[BlackElo "2116"]
[TimeControl "180+1"]
[EndTime "10:17:37 PDT"]
[Termination "dennisodessa won by checkmate"]

1. d4 {[%clk 0:02:59.8]} 1... Nf6 {[%clk 0:02:59.5]} 2. c4 {[%clk 0:03:00.2]}
2... e6 {[%clk 0:02:59.5]} 3. Nc3 {[%clk 0:03:00.4]} 3... Bb4 {[%clk 0:02:59.4]}
4. Qc2 {[%clk 0:03:00.8]} 4... Nc6 {[%clk 0:02:52.9]} 5. Nf3 {[%clk 0:03:00.6]}
5... O-O {[%clk 0:02:47]} 6. a3 {[%clk 0:02:57.9]} 6... Bxc3+ {[%clk 0:02:41.2]}
7. Qxc3 {[%clk 0:02:58.8]} 7... d6 {[%clk 0:02:39.9]} 8. b4 {[%clk 0:02:58.7]}
8... a6 {[%clk 0:02:34.1]} 9. Bb2 {[%clk 0:02:56.5]} 9... Qe7 {[%clk 0:02:31.8]}
10. e3 {[%clk 0:02:56.2]} 10... a5 {[%clk 0:02:23.1]} 11. b5 {[%clk 0:02:51.1]}
11... Nb8 {[%clk 0:02:21.9]} 12. Be2 {[%clk 0:02:52]} 12... Nbd7 {[%clk
0:02:20.3]} 13. O-O {[%clk 0:02:47.3]} 13... Re8 {[%clk 0:02:16.7]} 14. Rac1
{[%clk 0:02:39.5]} 14... e5 {[%clk 0:02:12.5]} 15. dxe5 {[%clk 0:02:37]} 15...
dxe5 {[%clk 0:02:11.8]} 16. c5 {[%clk 0:02:36.9]} 16... Ne4 {[%clk 0:02:09.6]}
17. Qc2 {[%clk 0:02:30.3]} 17... Ndxc5 {[%clk 0:02:00.7]} 18. Bxe5 {[%clk
0:02:12.1]} 18... Bf5 {[%clk 0:01:51.7]} 19. Qa2 {[%clk 0:02:07.7]} 19... Bg4
{[%clk 0:01:27]} 20. Bd4 {[%clk 0:02:05.1]} 20... Ne6 {[%clk 0:01:12.4]} 21. Ba1
{[%clk 0:01:57.2]} 21... Red8 {[%clk 0:00:57.6]} 22. Nd4 {[%clk 0:01:48.1]}
22... Bxe2 {[%clk 0:00:49.8]} 23. Qxe2 {[%clk 0:01:47.1]} 23... Nxd4 {[%clk
0:00:44.3]} 24. Bxd4 {[%clk 0:01:48]} 24... Rd7 {[%clk 0:00:16.4]} 25. a4 {[%clk
0:01:47.3]} 25... Qb4 {[%clk 0:00:15.1]} 26. Rc4 {[%clk 0:01:35.4]} 26... Qd2
{[%clk 0:00:12.8]} 27. Qg4 {[%clk 0:01:35.9]} 27... Re7 {[%clk 0:00:12.5]} 28.
Qxg7# {[%clk 0:01:35.8]} 1-0

[Event "*** SCC Grand Prix: Titled Tuesday Blitz"]
[Site "Chess.com"]
[Date "2020.08.25"]
[Round "2"]
[White "skiff134"]
[Black "krasavetc"]
[Result "1-0"]
[WhiteElo "2623"]
[BlackElo "2307"]
[TimeControl "180+1"]
[EndTime "10:17:42 PDT"]
[Termination "skiff134 won by checkmate"]

1. d4 {[%clk 0:03:00.9]} 1... Nf6 {[%clk 0:02:58.1]} 2. c4 {[%clk 0:03:00.6]}
2... e6 {[%clk 0:02:58.2]} 3. Nc3 {[%clk 0:03:00.2]} 3... d5 {[%clk 0:02:56.8]}
4. cxd5 {[%clk 0:02:59.8]} 4... exd5 {[%clk 0:02:56.7]} 5. Bg5 {[%clk
0:02:59.8]} 5... Be7 {[%clk 0:02:56.4]} 6. e3 {[%clk 0:02:59.5]} 6... c6 {[%clk
0:02:56.8]} 7. Bd3 {[%clk 0:02:59.5]} 7... O-O {[%clk 0:02:57]} 8. Nge2 {[%clk
0:02:57.7]} 8... Nbd7 {[%clk 0:02:55.1]} 9. Qc2 {[%clk 0:02:55.6]} 9... Re8
{[%clk 0:02:54.5]} 10. g4 {[%clk 0:02:52.2]} 10... h6 {[%clk 0:02:52.2]} 11. Bf4
{[%clk 0:02:52.1]} 11... g5 {[%clk 0:02:26.7]} 12. Bg3 {[%clk 0:02:49.7]} 12...
Nf8 {[%clk 0:02:22.4]} 13. h3 {[%clk 0:02:28.4]} 13... c5 {[%clk 0:02:02.1]} 14.
dxc5 {[%clk 0:02:22.8]} 14... Ne6 {[%clk 0:01:55.2]} 15. Bf5 {[%clk 0:02:16.8]}
15... Nxc5 {[%clk 0:01:43.4]} 16. Nd4 {[%clk 0:02:13.1]} 16... Bd6 {[%clk
0:01:31.1]} 17. Bxd6 {[%clk 0:01:53.5]} 17... Qxd6 {[%clk 0:01:30.4]} 18. h4
{[%clk 0:01:46.3]} 18... Nce4 {[%clk 0:00:45.3]} 19. hxg5 {[%clk 0:01:43.7]}
19... hxg5 {[%clk 0:00:42.9]} 20. O-O-O {[%clk 0:01:36.7]} 20... Bxf5 {[%clk
0:00:27.3]} 21. Nxf5 {[%clk 0:01:36.2]} 21... Qe5 {[%clk 0:00:27.7]} 22. f4
{[%clk 0:01:26.4]} 22... gxf4 {[%clk 0:00:23.8]} 23. Qh2 {[%clk 0:01:26.1]}
23... Nxg4 {[%clk 0:00:04.1]} 24. Qh7+ {[%clk 0:01:25.5]} 24... Kf8 {[%clk
0:00:04.3]} 25. Qh8+ {[%clk 0:01:26]} 25... Qxh8 {[%clk 0:00:05.1]} 26. Rxh8#
{[%clk 0:01:26.4]} 1-0

[Event "*** SCC Grand Prix: Titled Tuesday Blitz"]
[Site "Chess.com"]
[Date "2020.08.25"]
[Round "2"]
[White "Diego_FloresQ"]
[Black "AndreyNeves"]
[Result "1-0"]
[WhiteElo "2417"]
[BlackElo "2171"]
[TimeControl "180+1"]
[EndTime "10:17:43 PDT"]
[Termination "Diego_FloresQ won by resignation"]

1. e4 {[%clk 0:03:00.9]} 1... c5 {[%clk 0:02:59.2]} 2. Nf3 {[%clk 0:02:51.6]}
2... Nc6 {[%clk 0:02:58.8]} 3. d4 {[%clk 0:02:51.3]} 3... cxd4 {[%clk
0:02:58.3]} 4. Nxd4 {[%clk 0:02:52.2]} 4... Nf6 {[%clk 0:02:58.7]} 5. Nc3 {[%clk
0:02:52.3]} 5... d6 {[%clk 0:02:58.8]} 6. Bg5 {[%clk 0:02:52.6]} 6... e6 {[%clk
0:02:58.5]} 7. Qd2 {[%clk 0:02:52.9]} 7... a6 {[%clk 0:02:57.6]} 8. O-O-O {[%clk
0:02:52.5]} 8... Bd7 {[%clk 0:02:57.7]} 9. f4 {[%clk 0:02:51.7]} 9... b5 {[%clk
0:02:57.5]} 10. Nxc6 {[%clk 0:02:45.4]} 10... Bxc6 {[%clk 0:02:56.9]} 11. Qe1
{[%clk 0:02:46]} 11... Qc7 {[%clk 0:02:48.5]} 12. Nd5 {[%clk 0:02:38.3]} 12...
Bxd5 {[%clk 0:02:21.8]} 13. exd5 {[%clk 0:02:38.1]} 13... Rc8 {[%clk 0:02:21.9]}
14. c3 {[%clk 0:02:04]} 14... Be7 {[%clk 0:01:58]} 15. dxe6 {[%clk 0:01:58.6]}
15... O-O {[%clk 0:01:57.6]} 16. Bd3 {[%clk 0:01:42]} 16... b4 {[%clk
0:01:47.8]} 17. c4 {[%clk 0:01:40.8]} 17... d5 {[%clk 0:01:47.4]} 18. b3 {[%clk
0:01:40.5]} 18... Qa5 {[%clk 0:01:34.4]} 19. exf7+ {[%clk 0:01:21]} 19... Rxf7
{[%clk 0:01:31.2]} 20. Kb1 {[%clk 0:01:14.9]} 20... Qa3 {[%clk 0:01:18.5]} 21.
Qe6 {[%clk 0:01:06.3]} 21... dxc4 {[%clk 0:01:14.4]} 22. Qxc8+ {[%clk
0:01:01.9]} 22... Bf8 {[%clk 0:01:02.2]} 23. Bxc4 {[%clk 0:00:54.9]} 23... Ne4
{[%clk 0:01:02.3]} 24. Bxf7+ {[%clk 0:00:48.4]} 24... Kxf7 {[%clk 0:00:57.8]}
25. Qc4+ {[%clk 0:00:48.4]} 1-0

[Event "*** SCC Grand Prix: Titled Tuesday Blitz"]
[Site "Chess.com"]
[Date "2020.08.25"]
[Round "2"]
[White "albano87"]
[Black "Infernal_XaM"]
[Result "1/2-1/2"]
[WhiteElo "2565"]
[BlackElo "2904"]
[TimeControl "180+1"]
[EndTime "10:17:44 PDT"]
[Termination "Game drawn by repetition"]

1. d4 {[%clk 0:03:00.8]} 1... Nf6 {[%clk 0:02:59.9]} 2. Nf3 {[%clk 0:03:00.2]}
2... e6 {[%clk 0:02:59.8]} 3. g3 {[%clk 0:03:00]} 3... b5 {[%clk 0:02:59.7]} 4.
Bg2 {[%clk 0:03:00.5]} 4... Bb7 {[%clk 0:03:00.3]} 5. O-O {[%clk 0:03:01.4]}
5... c5 {[%clk 0:03:00.4]} 6. a4 {[%clk 0:02:56.4]} 6... b4 {[%clk 0:02:59.8]}
7. c3 {[%clk 0:02:56.7]} 7... cxd4 {[%clk 0:02:59]} 8. Nxd4 {[%clk 0:02:49.1]}
8... Bxg2 {[%clk 0:02:58.4]} 9. Kxg2 {[%clk 0:02:48.7]} 9... Qc8 {[%clk
0:02:58.9]} 10. Qd3 {[%clk 0:02:46.6]} 10... Na6 {[%clk 0:02:57]} 11. Bf4 {[%clk
0:02:38.7]} 11... Nc5 {[%clk 0:02:53.2]} 12. Qf3 {[%clk 0:02:38.1]} 12... Nce4
{[%clk 0:02:24]} 13. Nb5 {[%clk 0:02:29.1]} 13... g5 {[%clk 0:01:45.8]} 14. Be5
{[%clk 0:02:24.7]} 14... g4 {[%clk 0:01:45.4]} 15. Qf4 {[%clk 0:02:14.5]} 15...
Ke7 {[%clk 0:01:30.9]} 16. f3 {[%clk 0:01:55.9]} 16... gxf3+ {[%clk 0:01:23.3]}
17. exf3 {[%clk 0:01:54.9]} 17... Nd5 {[%clk 0:01:17.5]} 18. Qxe4 {[%clk
0:01:45.1]} 18... f6 {[%clk 0:01:18]} 19. Bd6+ {[%clk 0:01:43.4]} 19... Kf7
{[%clk 0:01:17.4]} 20. c4 {[%clk 0:01:32.9]} 20... f5 {[%clk 0:01:14.3]} 21. Qd4
{[%clk 0:01:29.8]} 21... Bg7 {[%clk 0:01:13.5]} 22. Be5 {[%clk 0:01:30.1]} 22...
Qxc4 {[%clk 0:01:08.4]} 23. Bxg7 {[%clk 0:01:25.6]} 23... Qe2+ {[%clk
0:01:04.7]} 24. Rf2 {[%clk 0:01:25.2]} 24... Ne3+ {[%clk 0:01:04.9]} 25. Kh3
{[%clk 0:01:21.5]} 25... Qxf2 {[%clk 0:01:04.9]} 26. Qxd7+ {[%clk 0:01:06.3]}
26... Kg8 {[%clk 0:00:52.3]} 27. Qxe6+ {[%clk 0:01:03.6]} 27... Kxg7 {[%clk
0:00:52.2]} 28. Qe7+ {[%clk 0:01:03.2]} 28... Kg8 {[%clk 0:00:49.9]} 29. Qe6+
{[%clk 0:01:03.1]} 29... Kg7 {[%clk 0:00:50.2]} 30. Qe7+ {[%clk 0:01:03]} 30...
Kg8 {[%clk 0:00:50.6]} 31. Qe6+ {[%clk 0:00:58.7]} 31... Kg7 {[%clk 0:00:51.1]}
1/2-1/2

[Event "*** SCC Grand Prix: Titled Tuesday Blitz"]
[Site "Chess.com"]
[Date "2020.08.25"]
[Round "2"]
[White "Shushik"]
[Black "brute4ever"]
[Result "0-1"]
[WhiteElo "2267"]
[BlackElo "2495"]
[TimeControl "180+1"]
[EndTime "10:17:49 PDT"]
[Termination "brute4ever won on time"]

1. e4 {[%clk 0:03:00.9]} 1... d5 {[%clk 0:02:59.4]} 2. exd5 {[%clk 0:03:00.7]}
2... Qxd5 {[%clk 0:03:00.3]} 3. Nf3 {[%clk 0:03:01.1]} 3... Qd8 {[%clk 0:03:00]}
4. d4 {[%clk 0:03:00.5]} 4... g6 {[%clk 0:03:00.9]} 5. c4 {[%clk 0:02:59.5]}
5... Bg7 {[%clk 0:03:01.4]} 6. Nc3 {[%clk 0:02:59.3]} 6... Nh6 {[%clk
0:03:01.8]} 7. Be2 {[%clk 0:02:54.3]} 7... Nf5 {[%clk 0:03:02]} 8. Be3 {[%clk
0:02:49.1]} 8... O-O {[%clk 0:02:58.2]} 9. O-O {[%clk 0:02:48.6]} 9... Nxe3
{[%clk 0:02:56.9]} 10. fxe3 {[%clk 0:02:48.3]} 10... c5 {[%clk 0:02:57.1]} 11.
d5 {[%clk 0:02:45.2]} 11... Nd7 {[%clk 0:02:56.9]} 12. Qd3 {[%clk 0:02:26.3]}
12... Ne5 {[%clk 0:02:51.6]} 13. Nxe5 {[%clk 0:02:24.8]} 13... Bxe5 {[%clk
0:02:52.5]} 14. Rad1 {[%clk 0:02:17.9]} 14... a6 {[%clk 0:02:50.6]} 15. Qd2
{[%clk 0:01:58]} 15... Qc7 {[%clk 0:02:47]} 16. h3 {[%clk 0:01:53.4]} 16... Bd7
{[%clk 0:02:40.2]} 17. Ne4 {[%clk 0:01:47.7]} 17... Rad8 {[%clk 0:02:38.4]} 18.
d6 {[%clk 0:01:37.1]} 18... exd6 {[%clk 0:02:35.9]} 19. Nf6+ {[%clk 0:01:36.6]}
19... Bxf6 {[%clk 0:02:28.2]} 20. Rxf6 {[%clk 0:01:35.6]} 20... Be6 {[%clk
0:02:28.6]} 21. e4 {[%clk 0:01:22.4]} 21... Qe7 {[%clk 0:02:24.5]} 22. Qg5
{[%clk 0:01:18.6]} 22... Rfe8 {[%clk 0:02:12.5]} 23. Rdf1 {[%clk 0:01:15.4]}
23... Kg7 {[%clk 0:01:49.8]} 24. Qf4 {[%clk 0:01:12.3]} 24... Rf8 {[%clk
0:01:44.5]} 25. b3 {[%clk 0:01:09]} 25... Bc8 {[%clk 0:01:38.5]} 26. Bg4 {[%clk
0:01:00.7]} 26... Bxg4 {[%clk 0:01:34.5]} 0-1

[Event "*** SCC Grand Prix: Titled Tuesday Blitz"]
[Site "Chess.com"]
[Date "2020.08.25"]
[Round "2"]
[White "nitpicker"]
[Black "GameOverBro"]
[Result "0-1"]
[WhiteElo "2212"]
[BlackElo "2439"]
[TimeControl "180+1"]
[EndTime "10:17:51 PDT"]
[Termination "GameOverBro won by resignation"]

1. d4 {[%clk 0:03:00.9]} 1... d6 {[%clk 0:03:00.1]} 2. e4 {[%clk 0:02:59.7]}
2... Nf6 {[%clk 0:03:00.6]} 3. Nc3 {[%clk 0:02:59.8]} 3... e5 {[%clk 0:03:01.3]}
4. Nge2 {[%clk 0:02:58.7]} 4... c6 {[%clk 0:03:00.9]} 5. a4 {[%clk 0:02:57.4]}
5... Nbd7 {[%clk 0:02:59.5]} 6. h3 {[%clk 0:02:56.9]} 6... h5 {[%clk 0:02:59.3]}
7. g3 {[%clk 0:02:54.5]} 7... b6 {[%clk 0:02:59.1]} 8. Be3 {[%clk 0:02:54.1]}
8... a6 {[%clk 0:02:59.4]} 9. Bg2 {[%clk 0:02:53.3]} 9... Bb7 {[%clk 0:02:59.9]}
10. O-O {[%clk 0:02:51.2]} 10... b5 {[%clk 0:03:00.3]} 11. d5 {[%clk 0:02:13.8]}
11... cxd5 {[%clk 0:02:56]} 12. Nxd5 {[%clk 0:02:13.6]} 12... Nxd5 {[%clk
0:02:53.3]} 13. exd5 {[%clk 0:02:13.1]} 13... Be7 {[%clk 0:02:41.3]} 14. axb5
{[%clk 0:01:54.9]} 14... axb5 {[%clk 0:02:40.7]} 15. Qd3 {[%clk 0:01:55.4]}
15... Qc8 {[%clk 0:02:11.8]} 16. c3 {[%clk 0:01:48.6]} 16... O-O {[%clk
0:02:06.3]} 17. Rfe1 {[%clk 0:01:24.2]} 17... Qc4 {[%clk 0:02:05.3]} 18. Be4
{[%clk 0:01:11.3]} 18... Nf6 {[%clk 0:02:04]} 19. Qxc4 {[%clk 0:00:50.6]} 19...
bxc4 {[%clk 0:02:03.6]} 20. Bf3 {[%clk 0:00:50.7]} 20... Bxd5 {[%clk 0:02:01.5]}
21. Bxd5 {[%clk 0:00:47.9]} 21... Nxd5 {[%clk 0:02:02.4]} 22. Bd2 {[%clk
0:00:45.4]} 22... Rfb8 {[%clk 0:01:57.9]} 23. Rxa8 {[%clk 0:00:39.6]} 23... Rxa8
{[%clk 0:01:58.8]} 24. f4 {[%clk 0:00:33]} 24... Ra2 {[%clk 0:01:56.4]} 25. Bc1
{[%clk 0:00:32.2]} 25... Bd8 {[%clk 0:01:52.3]} 26. Kg2 {[%clk 0:00:30.7]} 26...
Bc7 {[%clk 0:01:44.3]} 27. fxe5 {[%clk 0:00:30]} 27... dxe5 {[%clk 0:01:44.2]}
28. Kf3 {[%clk 0:00:26.8]} 28... f5 {[%clk 0:01:43.1]} 29. g4 {[%clk 0:00:26.6]}
29... hxg4+ {[%clk 0:01:42.7]} 30. hxg4 {[%clk 0:00:26.2]} 30... e4+ {[%clk
0:01:39.7]} 31. Kg2 {[%clk 0:00:26.8]} 31... f4 {[%clk 0:01:35.5]} 32. Rd1
{[%clk 0:00:23.8]} 32... f3+ {[%clk 0:01:30.1]} 33. Kf2 {[%clk 0:00:22.2]} 33...
Bb6+ {[%clk 0:01:22.4]} 34. Nd4 {[%clk 0:00:22.3]} 34... Nxc3 {[%clk 0:01:19.8]}
35. Rd3 {[%clk 0:00:19.5]} 35... cxd3 {[%clk 0:01:19.5]} 0-1